[Event "*** SCC Grand Prix: Titled Tuesday Blitz"]
[Site "Chess.com"]
[Date "2020.08.25"]
[Round "9"]
[White "ShadowJolteon"]
[Black "Grootneus"]
[Result "1-0"]
[WhiteElo "2426"]
[BlackElo "2175"]
[TimeControl "180+1"]
[EndTime "11:44:46 PDT"]
[Termination "ShadowJolteon won by resignation"]

1. d4 {[%clk 0:02:59.5]} 1... Nf6 {[%clk 0:02:59.5]} 2. c4 {[%clk 0:02:59.2]}
2... c5 {[%clk 0:02:59]} 3. Nf3 {[%clk 0:02:58.7]} 3... cxd4 {[%clk 0:02:58.8]}
4. Nxd4 {[%clk 0:02:59.6]} 4... e5 {[%clk 0:02:59.3]} 5. Nb5 {[%clk 0:03:00]}
5... d5 {[%clk 0:02:59.6]} 6. cxd5 {[%clk 0:03:00.9]} 6... Bc5 {[%clk
0:03:00.1]} 7. N5c3 {[%clk 0:03:00.6]} 7... O-O {[%clk 0:03:00.6]} 8. g3 {[%clk
0:03:01.1]} 8... Qb6 {[%clk 0:02:57.3]} 9. e3 {[%clk 0:03:01.2]} 9... Bf5 {[%clk
0:02:41.8]} 10. Bg2 {[%clk 0:03:00.2]} 10... e4 {[%clk 0:02:41.4]} 11. Nd2
{[%clk 0:02:59.7]} 11... Re8 {[%clk 0:02:34.6]} 12. O-O {[%clk 0:02:58.6]} 12...
Nbd7 {[%clk 0:02:33]} 13. b3 {[%clk 0:02:47.8]} 13... Bb4 {[%clk 0:02:22.8]} 14.
Nc4 {[%clk 0:02:37.4]} 14... Qa6 {[%clk 0:02:05.3]} 15. Bb2 {[%clk 0:02:32.6]}
15... b5 {[%clk 0:02:03]} 16. Nd2 {[%clk 0:02:24.2]} 16... Bxc3 {[%clk
0:02:02.6]} 17. Bxc3 {[%clk 0:02:22.9]} 17... Nxd5 {[%clk 0:02:02.7]} 18. Bd4
{[%clk 0:02:23.5]} 18... Rac8 {[%clk 0:01:52.9]} 19. Qh5 {[%clk 0:02:22.7]}
19... Qg6 {[%clk 0:01:45.4]} 20. Qe2 {[%clk 0:02:20.6]} 20... a6 {[%clk
0:01:37.6]} 21. Rfc1 {[%clk 0:02:19.2]} 21... Ne5 {[%clk 0:01:34.9]} 22. Rxc8
{[%clk 0:02:07.9]} 22... Bxc8 {[%clk 0:01:30.5]} 23. Bxe4 {[%clk 0:02:06.1]}
23... Qd6 {[%clk 0:01:21.1]} 24. Rc1 {[%clk 0:02:03]} 24... Nc6 {[%clk
0:01:09.8]} 25. Qh5 {[%clk 0:01:52.3]} 25... f5 {[%clk 0:00:52]} 26. Qxe8+
{[%clk 0:01:39.4]} 1-0

[Event "*** SCC Grand Prix: Titled Tuesday Blitz"]
[Site "Chess.com"]
[Date "2020.08.25"]
[Round "9"]
[White "MoreChessJulia"]
[Black "Anton_Zhukov04"]
[Result "0-1"]
[WhiteElo "1901"]
[BlackElo "2226"]
[TimeControl "180+1"]
[EndTime "11:44:49 PDT"]
[Termination "Anton_Zhukov04 won by resignation"]

1. d4 {[%clk 0:02:59.9]} 1... Nf6 {[%clk 0:02:59.1]} 2. c4 {[%clk 0:02:58.9]}
2... e6 {[%clk 0:02:59.7]} 3. Nf3 {[%clk 0:02:57.6]} 3... Bb4+ {[%clk
0:03:00.1]} 4. Bd2 {[%clk 0:02:57]} 4... c5 {[%clk 0:03:00.3]} 5. g3 {[%clk
0:02:54.6]} 5... Qb6 {[%clk 0:02:58]} 6. a3 {[%clk 0:02:45.9]} 6... Bxd2+ {[%clk
0:02:56.1]} 7. Qxd2 {[%clk 0:02:45.2]} 7... Nc6 {[%clk 0:02:52.1]} 8. d5 {[%clk
0:02:44.2]} 8... exd5 {[%clk 0:02:42.6]} 9. cxd5 {[%clk 0:02:43.4]} 9... Ne7
{[%clk 0:02:42.6]} 10. Nc3 {[%clk 0:02:40.9]} 10... d6 {[%clk 0:02:42.9]} 11.
Bg2 {[%clk 0:02:38.3]} 11... O-O {[%clk 0:02:42.5]} 12. O-O {[%clk 0:02:36.7]}
12... Ng6 {[%clk 0:02:42.4]} 13. h3 {[%clk 0:02:31.1]} 13... a6 {[%clk
0:02:39.2]} 14. Ne1 {[%clk 0:02:17.8]} 14... Re8 {[%clk 0:02:36.3]} 15. Nd3
{[%clk 0:02:17.2]} 15... Qc7 {[%clk 0:02:29.6]} 16. e4 {[%clk 0:02:16.1]} 16...
b5 {[%clk 0:02:27.8]} 17. Rae1 {[%clk 0:02:13.1]} 17... c4 {[%clk 0:02:24.9]}
18. Nb4 {[%clk 0:02:09.2]} 18... a5 {[%clk 0:02:20.1]} 19. Nc6 {[%clk
0:02:08.6]} 19... Ba6 {[%clk 0:01:51.2]} 20. f4 {[%clk 0:02:06.2]} 20... b4
{[%clk 0:01:48.5]} 21. axb4 {[%clk 0:02:04.4]} 21... axb4 {[%clk 0:01:49.4]} 22.
Nxb4 {[%clk 0:02:03.8]} 22... Qb6+ {[%clk 0:01:49.2]} 23. Kh2 {[%clk 0:01:55.2]}
23... Qxb4 {[%clk 0:01:47.6]} 24. e5 {[%clk 0:01:55.4]} 24... dxe5 {[%clk
0:01:42.3]} 25. f5 {[%clk 0:01:55.3]} 25... Nf8 {[%clk 0:01:36.8]} 26. g4 {[%clk
0:01:46.3]} 26... e4 {[%clk 0:01:35.6]} 27. g5 {[%clk 0:01:42.3]} 27... Qd6+
{[%clk 0:01:28.6]} 28. Kh1 {[%clk 0:01:38.8]} 28... Nh5 {[%clk 0:01:28.4]} 29.
Nxe4 {[%clk 0:01:34.7]} 29... Rxe4 {[%clk 0:01:28.3]} 30. Rxe4 {[%clk
0:01:34.2]} 30... Ng3+ {[%clk 0:01:28]} 31. Kg1 {[%clk 0:01:34]} 31... Nxe4
{[%clk 0:01:20.6]} 32. Bxe4 {[%clk 0:01:33.4]} 32... c3 {[%clk 0:01:21.1]} 33.
b3 {[%clk 0:01:31]} 33... cxd2 {[%clk 0:01:19.9]} 0-1

[Event "*** SCC Grand Prix: Titled Tuesday Blitz"]
[Site "Chess.com"]
[Date "2020.08.25"]
[Round "9"]
[White "Alexander_Moskalenko"]
[Black "RobertoJBM"]
[Result "1-0"]
[WhiteElo "2780"]
[BlackElo "2645"]
[TimeControl "180+1"]
[EndTime "11:44:51 PDT"]
[Termination "Alexander_Moskalenko won on time"]

1. c4 {[%clk 0:03:00.9]} 1... c6 {[%clk 0:02:59.7]} 2. Nc3 {[%clk 0:03:01.8]}
2... d5 {[%clk 0:03:00.6]} 3. e3 {[%clk 0:02:59.1]} 3... Nf6 {[%clk 0:03:00.2]}
4. d4 {[%clk 0:02:59.3]} 4... a6 {[%clk 0:02:49.3]} 5. Nf3 {[%clk 0:02:50.4]}
5... Bf5 {[%clk 0:02:48.9]} 6. Qb3 {[%clk 0:02:47.6]} 6... b5 {[%clk 0:02:48.1]}
7. cxd5 {[%clk 0:02:44.4]} 7... cxd5 {[%clk 0:02:49]} 8. a4 {[%clk 0:02:43]}
8... b4 {[%clk 0:02:49.5]} 9. Qxb4 {[%clk 0:02:42.7]} 9... Nc6 {[%clk
0:02:48.3]} 10. Qc5 {[%clk 0:02:40]} 10... Qd7 {[%clk 0:00:47.5]} 11. Ne5 {[%clk
0:02:33.4]} 11... Nxe5 {[%clk 0:00:46.4]} 12. dxe5 {[%clk 0:02:34.3]} 12... e6
{[%clk 0:00:46.9]} 13. Qb6 {[%clk 0:02:31.8]} 13... Ng4 {[%clk 0:00:41.8]} 14.
Bxa6 {[%clk 0:02:30]} 14... Bc5 {[%clk 0:00:14.1]} 15. Qxc5 {[%clk 0:02:21.5]}
15... Rxa6 {[%clk 0:00:14.2]} 16. Nb5 {[%clk 0:02:22.1]} 16... Rc6 {[%clk
0:00:12.9]} 17. Nd6+ {[%clk 0:02:20]} 17... Kd8 {[%clk 0:00:11.8]} 18. Nxf7+
{[%clk 0:02:16.2]} 18... Ke8 {[%clk 0:00:09]} 19. Nd6+ {[%clk 0:02:14.8]} 19...
Kd8 {[%clk 0:00:07.6]} 20. Qa5+ {[%clk 0:02:14.9]} 20... Ke7 {[%clk 0:00:07.9]}
21. Qb4 {[%clk 0:02:13.1]} 21... Kd8 {[%clk 0:00:01.9]} 22. Qb8+ {[%clk
0:02:12]} 1-0

[Event "*** SCC Grand Prix: Titled Tuesday Blitz"]
[Site "Chess.com"]
[Date "2020.08.25"]
[Round "9"]
[White "abykhovsky"]
[Black "BeanScreen"]
[Result "1-0"]
[WhiteElo "2785"]
[BlackElo "2698"]
[TimeControl "180+1"]
[EndTime "11:44:55 PDT"]
[Termination "abykhovsky won by checkmate"]

1. d4 {[%clk 0:03:00.9]} 1... d5 {[%clk 0:02:59.3]} 2. Nf3 {[%clk 0:03:01.3]}
2... Nf6 {[%clk 0:02:59.4]} 3. c4 {[%clk 0:03:01.8]} 3... dxc4 {[%clk
0:03:00.1]} 4. e3 {[%clk 0:03:01.6]} 4... a6 {[%clk 0:03:00.7]} 5. Bxc4 {[%clk
0:03:01.6]} 5... e6 {[%clk 0:03:01.4]} 6. O-O {[%clk 0:03:01.1]} 6... c5 {[%clk
0:03:01.8]} 7. Bb3 {[%clk 0:03:01.6]} 7... Nc6 {[%clk 0:03:01.8]} 8. Qe2 {[%clk
0:03:01.3]} 8... Qc7 {[%clk 0:02:58.8]} 9. Nc3 {[%clk 0:03:00.7]} 9... Be7
{[%clk 0:02:58.7]} 10. Bd2 {[%clk 0:03:01.1]} 10... cxd4 {[%clk 0:02:57.8]} 11.
exd4 {[%clk 0:03:01.2]} 11... O-O {[%clk 0:02:58.3]} 12. Rac1 {[%clk 0:03:01.5]}
12... Bd7 {[%clk 0:02:52.8]} 13. Rfd1 {[%clk 0:02:57.3]} 13... Rfd8 {[%clk
0:02:52.7]} 14. d5 {[%clk 0:02:51.7]} 14... exd5 {[%clk 0:02:51.1]} 15. Nxd5
{[%clk 0:02:50.3]} 15... Nxd5 {[%clk 0:02:51.4]} 16. Bxd5 {[%clk 0:02:51]} 16...
Bf6 {[%clk 0:02:46]} 17. Bg5 {[%clk 0:02:46.7]} 17... Bxg5 {[%clk 0:01:42.3]}
18. Nxg5 {[%clk 0:02:45.7]} 18... Rf8 {[%clk 0:01:42.6]} 19. Qh5 {[%clk
0:02:37.4]} 19... Bf5 {[%clk 0:01:42.5]} 20. Nxf7 {[%clk 0:02:35.3]} 20... g6
{[%clk 0:01:10.4]} 21. Nh6+ {[%clk 0:02:30.5]} 21... Kg7 {[%clk 0:00:59.5]} 22.
Qh4 {[%clk 0:02:28.2]} 22... Qe5 {[%clk 0:00:49.2]} 23. Bxc6 {[%clk 0:02:15.1]}
23... bxc6 {[%clk 0:00:49.1]} 24. Nxf5+ {[%clk 0:02:15.4]} 24... Qxf5 {[%clk
0:00:49.1]} 25. Rxc6 {[%clk 0:02:14.3]} 25... Rad8 {[%clk 0:00:46.2]} 26. Rc7+
{[%clk 0:02:10.2]} 26... Kg8 {[%clk 0:00:17.9]} 27. Qxh7# {[%clk 0:02:06.1]} 1-0

[Event "*** SCC Grand Prix: Titled Tuesday Blitz"]
[Site "Chess.com"]
[Date "2020.08.25"]
[Round "9"]
[White "snowlord"]
[Black "MomchilPetkov"]
[Result "1-0"]
[WhiteElo "2797"]
[BlackElo "2554"]
[TimeControl "180+1"]
[EndTime "11:44:59 PDT"]
[Termination "snowlord won by resignation"]

1. d4 {[%clk 0:03:00.9]} 1... Nf6 {[%clk 0:02:54.7]} 2. Nc3 {[%clk 0:03:01.3]}
2... d5 {[%clk 0:02:54.1]} 3. Bf4 {[%clk 0:03:01.8]} 3... a6 {[%clk 0:02:54.5]}
4. e3 {[%clk 0:03:01.1]} 4... e6 {[%clk 0:02:54.8]} 5. g4 {[%clk 0:03:01.1]}
5... c5 {[%clk 0:02:51.2]} 6. g5 {[%clk 0:03:01]} 6... Nfd7 {[%clk 0:02:51.5]}
7. Nf3 {[%clk 0:03:01.4]} 7... Nc6 {[%clk 0:02:51.2]} 8. h4 {[%clk 0:03:02]}
8... Be7 {[%clk 0:02:51.7]} 9. h5 {[%clk 0:03:01.8]} 9... b5 {[%clk 0:02:50.6]}
10. a3 {[%clk 0:03:00.8]} 10... Bb7 {[%clk 0:02:50.8]} 11. Ne2 {[%clk
0:03:00.1]} 11... Nb6 {[%clk 0:02:38.7]} 12. Ng3 {[%clk 0:02:59.4]} 12... Nc4
{[%clk 0:02:36]} 13. Bxc4 {[%clk 0:02:56.1]} 13... dxc4 {[%clk 0:02:34.4]} 14.
c3 {[%clk 0:02:56.3]} 14... Na5 {[%clk 0:02:29.6]} 15. Qe2 {[%clk 0:02:53.2]}
15... cxd4 {[%clk 0:02:07.9]} 16. cxd4 {[%clk 0:02:54.1]} 16... Nb3 {[%clk
0:02:08.2]} 17. Rd1 {[%clk 0:02:53.6]} 17... Qa5+ {[%clk 0:02:01.4]} 18. Kf1
{[%clk 0:02:51]} 18... O-O-O {[%clk 0:02:01.7]} 19. Ne5 {[%clk 0:02:44.2]} 19...
Rhf8 {[%clk 0:01:54.4]} 20. g6 {[%clk 0:02:42]} 20... fxg6 {[%clk 0:01:52.3]}
21. hxg6 {[%clk 0:02:42.9]} 21... h6 {[%clk 0:01:49.1]} 22. Rh5 {[%clk
0:02:34.9]} 22... Nxd4 {[%clk 0:01:43.6]} 23. Qg4 {[%clk 0:02:06.7]} 23... Nf5
{[%clk 0:01:24.6]} 24. Rxd8+ {[%clk 0:01:59.3]} 24... Qxd8 {[%clk 0:01:13.7]}
25. Nxf5 {[%clk 0:01:59.9]} 25... Rxf5 {[%clk 0:01:09.6]} 26. Rxf5 {[%clk
0:02:00.8]} 26... Qd2 {[%clk 0:00:51.3]} 27. Rf8+ {[%clk 0:01:47.5]} 27... Bxf8
{[%clk 0:00:42.4]} 28. Qxe6+ {[%clk 0:01:47.4]} 28... Kb8 {[%clk 0:00:40.6]} 29.
Nxc4+ {[%clk 0:01:47.1]} 1-0

[Event "*** SCC Grand Prix: Titled Tuesday Blitz"]
[Site "Chess.com"]
[Date "2020.08.25"]
[Round "9"]
[White "ARTHURMOTIVATOR"]
[Black "StephenDedalus83"]
[Result "0-1"]
[WhiteElo "2286"]
[BlackElo "2714"]
[TimeControl "180+1"]
[EndTime "11:45:11 PDT"]
[Termination "StephenDedalus83 won by resignation"]

1. e4 {[%clk 0:02:54.6]} 1... c5 {[%clk 0:02:59.2]} 2. b3 {[%clk 0:02:53.1]}
2... d6 {[%clk 0:02:57.5]} 3. Bb2 {[%clk 0:02:53.1]} 3... Nf6 {[%clk 0:02:57.3]}
4. Bb5+ {[%clk 0:02:52.6]} 4... Bd7 {[%clk 0:02:56.3]} 5. Bxd7+ {[%clk
0:02:52.5]} 5... Qxd7 {[%clk 0:02:56.2]} 6. d3 {[%clk 0:02:52.3]} 6... g6 {[%clk
0:02:55.5]} 7. Nf3 {[%clk 0:02:43.1]} 7... Bg7 {[%clk 0:02:55.3]} 8. O-O {[%clk
0:02:40.7]} 8... O-O {[%clk 0:02:54.4]} 9. Nbd2 {[%clk 0:02:40.8]} 9... Nc6
{[%clk 0:02:53.1]} 10. Nc4 {[%clk 0:02:32.5]} 10... e5 {[%clk 0:02:48.8]} 11.
Ne3 {[%clk 0:02:22.9]} 11... Nh5 {[%clk 0:02:48.5]} 12. Nd2 {[%clk 0:02:18.2]}
12... Nf4 {[%clk 0:02:46.7]} 13. g3 {[%clk 0:02:10]} 13... Ne6 {[%clk
0:02:41.8]} 14. f4 {[%clk 0:02:01.8]} 14... exf4 {[%clk 0:02:40.5]} 15. Bxg7
{[%clk 0:01:59.1]} 15... Kxg7 {[%clk 0:02:33.4]} 16. gxf4 {[%clk 0:01:57.2]}
16... f5 {[%clk 0:02:32]} 17. Nd5 {[%clk 0:00:57.6]} 17... Ne7 {[%clk
0:02:27.2]} 18. c4 {[%clk 0:00:51.3]} 18... fxe4 {[%clk 0:02:26.3]} 19. Qg4
{[%clk 0:00:31.5]} 19... exd3 {[%clk 0:02:23.5]} 20. Rae1 {[%clk 0:00:30.1]}
20... Nf5 {[%clk 0:02:23.2]} 21. Ne4 {[%clk 0:00:26.3]} 21... Ned4 {[%clk
0:02:20.2]} 22. Ng5 {[%clk 0:00:20.7]} 22... Ne2+ {[%clk 0:02:19.6]} 23. Rxe2
{[%clk 0:00:17.5]} 23... dxe2 {[%clk 0:02:18.6]} 24. Qxe2 {[%clk 0:00:17.8]}
24... Rae8 {[%clk 0:02:18.1]} 25. Qb2+ {[%clk 0:00:17.6]} 25... Nd4 {[%clk
0:02:14]} 26. Rd1 {[%clk 0:00:15.8]} 26... Re2 {[%clk 0:02:12.6]} 27. Qc3 {[%clk
0:00:14.4]} 27... Qg4+ {[%clk 0:02:11.6]} 28. Qg3 {[%clk 0:00:13]} 28... Qxg3+
{[%clk 0:02:09.3]} 29. hxg3 {[%clk 0:00:13.3]} 29... h6 {[%clk 0:02:09.2]} 30.
Nh3 {[%clk 0:00:08.2]} 30... Rfe8 {[%clk 0:02:08.4]} 0-1

[Event "*** SCC Grand Prix: Titled Tuesday Blitz"]
[Site "Chess.com"]
[Date "2020.08.25"]
[Round "9"]
[White "catzapto"]
[Black "PawnEatingZombie"]
[Result "0-1"]
[WhiteElo "2049"]
[BlackElo "2220"]
[TimeControl "180+1"]
[EndTime "11:45:11 PDT"]
[Termination "PawnEatingZombie won by resignation"]

1. e4 {[%clk 0:03:00.9]} 1... c6 {[%clk 0:02:53.9]} 2. Nf3 {[%clk 0:03:01]} 2...
d5 {[%clk 0:02:52]} 3. exd5 {[%clk 0:03:01.9]} 3... cxd5 {[%clk 0:02:50.8]} 4.
d4 {[%clk 0:03:02.8]} 4... Nf6 {[%clk 0:02:50.6]} 5. c3 {[%clk 0:03:03.4]} 5...
Nc6 {[%clk 0:02:46.8]} 6. Bd3 {[%clk 0:03:03.7]} 6... Bg4 {[%clk 0:02:46.2]} 7.
Qb3 {[%clk 0:03:04.3]} 7... Qc8 {[%clk 0:02:25.4]} 8. Ne5 {[%clk 0:03:03.6]}
8... Bd7 {[%clk 0:02:20.5]} 9. Nxd7 {[%clk 0:03:01.9]} 9... Qxd7 {[%clk
0:02:20.1]} 10. Nd2 {[%clk 0:03:02.3]} 10... e6 {[%clk 0:02:19.7]} 11. Nf3
{[%clk 0:03:02.2]} 11... Bd6 {[%clk 0:02:19.4]} 12. Ne5 {[%clk 0:03:01.2]} 12...
Qc7 {[%clk 0:02:07.7]} 13. f4 {[%clk 0:03:01.1]} 13... O-O {[%clk 0:02:06.8]}
14. O-O {[%clk 0:02:59.7]} 14... a6 {[%clk 0:01:57.2]} 15. Be3 {[%clk
0:02:43.8]} 15... Ne7 {[%clk 0:01:54.2]} 16. Qc2 {[%clk 0:02:33.3]} 16... g6
{[%clk 0:01:48.6]} 17. Rae1 {[%clk 0:02:21]} 17... Ne8 {[%clk 0:01:47.8]} 18.
Ng4 {[%clk 0:02:14.3]} 18... f5 {[%clk 0:01:41.3]} 19. Ne5 {[%clk 0:02:02.5]}
19... Nf6 {[%clk 0:01:39]} 20. Rf3 {[%clk 0:01:54]} 20... b5 {[%clk 0:01:30.4]}
21. a3 {[%clk 0:01:53]} 21... Rab8 {[%clk 0:01:23.8]} 22. Rh3 {[%clk 0:01:49]}
22... Rfc8 {[%clk 0:01:21.4]} 23. Qf2 {[%clk 0:01:42.2]} 23... Kg7 {[%clk
0:00:58.4]} 24. Qh4 {[%clk 0:01:41.6]} 24... Neg8 {[%clk 0:00:58.3]} 25. Qh6+
{[%clk 0:01:41.3]} 25... Nxh6 {[%clk 0:00:57.4]} 0-1

[Event "*** SCC Grand Prix: Titled Tuesday Blitz"]
[Site "Chess.com"]
[Date "2020.08.25"]
[Round "9"]
[White "alexrustemov"]
[Black "WPWPWP-2015"]
[Result "1-0"]
[WhiteElo "2648"]
[BlackElo "2485"]
[TimeControl "180+1"]
[EndTime "11:45:13 PDT"]
[Termination "alexrustemov won by resignation"]

1. d4 {[%clk 0:03:00.9]} 1... Nf6 {[%clk 0:02:58.9]} 2. c4 {[%clk 0:03:00.5]}
2... c6 {[%clk 0:02:59.1]} 3. Nc3 {[%clk 0:02:59.6]} 3... d5 {[%clk 0:02:59]} 4.
e3 {[%clk 0:03:00.1]} 4... e6 {[%clk 0:02:56.3]} 5. Nf3 {[%clk 0:03:00]} 5...
Nbd7 {[%clk 0:02:55.8]} 6. Qc2 {[%clk 0:03:00.2]} 6... Bd6 {[%clk 0:02:55]} 7.
Bd2 {[%clk 0:03:00.1]} 7... O-O {[%clk 0:02:54.3]} 8. O-O-O {[%clk 0:02:59.9]}
8... Qe7 {[%clk 0:02:51.3]} 9. Kb1 {[%clk 0:02:58.7]} 9... a5 {[%clk 0:02:49.8]}
10. e4 {[%clk 0:02:35]} 10... e5 {[%clk 0:02:44.2]} 11. exd5 {[%clk 0:02:24.3]}
11... cxd5 {[%clk 0:02:39.2]} 12. cxd5 {[%clk 0:02:21.3]} 12... e4 {[%clk
0:02:18.4]} 13. Ng5 {[%clk 0:02:20.3]} 13... Re8 {[%clk 0:02:11.2]} 14. Bb5
{[%clk 0:02:11]} 14... h6 {[%clk 0:02:06.1]} 15. Nh3 {[%clk 0:02:02.3]} 15...
Bb4 {[%clk 0:01:52]} 16. Rhe1 {[%clk 0:01:58.8]} 16... Bxc3 {[%clk 0:01:50.1]}
17. bxc3 {[%clk 0:01:45.9]} 17... Nxd5 {[%clk 0:01:45.5]} 18. f3 {[%clk
0:01:16.4]} 18... f5 {[%clk 0:01:36.5]} 19. fxe4 {[%clk 0:01:14.1]} 19... fxe4
{[%clk 0:01:36.3]} 20. Qb3 {[%clk 0:01:04.2]} 20... Qf7 {[%clk 0:01:21.5]} 21.
Rf1 {[%clk 0:01:01.4]} 21... N5f6 {[%clk 0:01:12.7]} 22. Bc4 {[%clk 0:01:00]}
22... a4 {[%clk 0:00:54.8]} 23. Bxf7+ {[%clk 0:00:59]} 1-0

[Event "*** SCC Grand Prix: Titled Tuesday Blitz"]
[Site "Chess.com"]
[Date "2020.08.25"]
[Round "9"]
[White "Nara_Kh"]
[Black "isainz"]
[Result "1-0"]
[WhiteElo "2317"]
[BlackElo "2126"]
[TimeControl "180+1"]
[EndTime "11:45:20 PDT"]
[Termination "Nara_Kh won by resignation"]

1. e4 {[%clk 0:03:00.9]} 1... c5 {[%clk 0:02:59.8]} 2. Nf3 {[%clk 0:02:58.5]}
2... Nc6 {[%clk 0:03:00.4]} 3. Bb5 {[%clk 0:02:55.8]} 3... g6 {[%clk 0:03:00]}
4. Bxc6 {[%clk 0:02:55.4]} 4... dxc6 {[%clk 0:03:00.2]} 5. O-O {[%clk 0:02:56]}
5... Bg7 {[%clk 0:03:00.1]} 6. d3 {[%clk 0:02:55.2]} 6... e5 {[%clk 0:02:59.5]}
7. Nc3 {[%clk 0:02:53.2]} 7... Qe7 {[%clk 0:02:58.2]} 8. Be3 {[%clk 0:02:53.2]}
8... Nf6 {[%clk 0:02:49.6]} 9. h3 {[%clk 0:02:50.1]} 9... Nd7 {[%clk 0:02:42.6]}
10. Nd2 {[%clk 0:02:48.7]} 10... O-O {[%clk 0:02:41]} 11. f4 {[%clk 0:02:45.5]}
11... b6 {[%clk 0:02:25.3]} 12. Nc4 {[%clk 0:02:40.9]} 12... Ba6 {[%clk
0:02:13.7]} 13. Nxe5 {[%clk 0:02:31.7]} 13... Nxe5 {[%clk 0:02:13.1]} 14. fxe5
{[%clk 0:02:32.6]} 14... Bxe5 {[%clk 0:02:11.5]} 15. Bh6 {[%clk 0:02:27]} 15...
Rfd8 {[%clk 0:02:01.6]} 16. Qf3 {[%clk 0:02:25.6]} 16... Bc8 {[%clk 0:01:43.5]}
17. Kh1 {[%clk 0:02:13.6]} 17... Be6 {[%clk 0:01:41.5]} 18. a4 {[%clk
0:02:09.2]} 18... Rac8 {[%clk 0:01:34.3]} 19. Rae1 {[%clk 0:02:01.7]} 19... Bh8
{[%clk 0:01:18.7]} 20. e5 {[%clk 0:01:56.7]} 20... b5 {[%clk 0:01:02.7]} 21. Ne4
{[%clk 0:01:49.6]} 21... Bd5 {[%clk 0:00:47.4]} 22. Bg5 {[%clk 0:01:23.7]} 22...
Bxe4 {[%clk 0:00:46]} 23. Rxe4 {[%clk 0:01:23.7]} 1-0

[Event "*** SCC Grand Prix: Titled Tuesday Blitz"]
[Site "Chess.com"]
[Date "2020.08.25"]
[Round "9"]
[White "bazar-wokzal"]
[Black "crackcubano"]
[Result "0-1"]
[WhiteElo "2487"]
[BlackElo "2656"]
[TimeControl "180+1"]
[EndTime "11:45:21 PDT"]
[Termination "crackcubano won by resignation"]

1. e4 {[%clk 0:03:00.9]} 1... c5 {[%clk 0:02:59.9]} 2. c3 {[%clk 0:03:00.8]}
2... Nf6 {[%clk 0:02:58.5]} 3. e5 {[%clk 0:03:01.1]} 3... Nd5 {[%clk 0:02:59.1]}
4. d4 {[%clk 0:03:01.3]} 4... cxd4 {[%clk 0:02:59.6]} 5. cxd4 {[%clk 0:03:01.6]}
5... d6 {[%clk 0:02:57.6]} 6. Bc4 {[%clk 0:03:01.1]} 6... e6 {[%clk 0:02:56.9]}
7. Nf3 {[%clk 0:03:00.7]} 7... Be7 {[%clk 0:02:55]} 8. O-O {[%clk 0:02:59.8]}
8... O-O {[%clk 0:02:54.6]} 9. Qe2 {[%clk 0:02:59.7]} 9... b6 {[%clk 0:02:54]}
10. Rd1 {[%clk 0:02:54]} 10... Bb7 {[%clk 0:02:53.8]} 11. Qe4 {[%clk 0:02:45.9]}
11... Nd7 {[%clk 0:02:50.7]} 12. Bd3 {[%clk 0:02:44.1]} 12... g6 {[%clk
0:02:48.5]} 13. Qe2 {[%clk 0:02:17.5]} 13... dxe5 {[%clk 0:02:40.2]} 14. Bh6
{[%clk 0:02:08.8]} 14... Nf4 {[%clk 0:02:34.5]} 15. Qe3 {[%clk 0:01:57.3]} 15...
Nxd3 {[%clk 0:02:24.4]} 16. Bxf8 {[%clk 0:01:29.6]} 16... Bxf8 {[%clk
0:02:18.9]} 17. dxe5 {[%clk 0:01:01.7]} 17... Nxb2 {[%clk 0:01:59.6]} 18. Rc1
{[%clk 0:00:49.6]} 18... Bxf3 {[%clk 0:01:54.2]} 19. Qxf3 {[%clk 0:00:48.7]}
19... Nxe5 {[%clk 0:01:53.4]} 20. Qe4 {[%clk 0:00:45.4]} 20... Bg7 {[%clk
0:01:48.5]} 21. Nc3 {[%clk 0:00:42.1]} 21... Ned3 {[%clk 0:01:46]} 22. Rc2
{[%clk 0:00:36]} 22... Rc8 {[%clk 0:01:43.8]} 23. Rxb2 {[%clk 0:00:21.5]} 23...
Bxc3 {[%clk 0:01:36.8]} 0-1

[Event "*** SCC Grand Prix: Titled Tuesday Blitz"]
[Site "Chess.com"]
[Date "2020.08.25"]
[Round "9"]
[White "x-0414717230"]
[Black "Fandorine"]
[Result "0-1"]
[WhiteElo "2714"]
[BlackElo "2909"]
[TimeControl "180+1"]
[EndTime "11:45:24 PDT"]
[Termination "Fandorine won by resignation"]

1. d4 {[%clk 0:03:00.9]} 1... Nf6 {[%clk 0:03:00]} 2. c4 {[%clk 0:03:00.2]} 2...
g6 {[%clk 0:03:00.5]} 3. Nc3 {[%clk 0:02:59.8]} 3... d5 {[%clk 0:03:00.4]} 4.
Bf4 {[%clk 0:03:00.1]} 4... Bg7 {[%clk 0:02:59.9]} 5. e3 {[%clk 0:03:00.7]} 5...
c5 {[%clk 0:03:00.3]} 6. dxc5 {[%clk 0:03:00.8]} 6... Qa5 {[%clk 0:03:00.4]} 7.
Rc1 {[%clk 0:03:00.6]} 7... dxc4 {[%clk 0:03:00.3]} 8. Bxc4 {[%clk 0:03:00.7]}
8... O-O {[%clk 0:03:00.9]} 9. Ne2 {[%clk 0:03:00.6]} 9... Qxc5 {[%clk
0:03:00.8]} 10. Qb3 {[%clk 0:03:01]} 10... Nc6 {[%clk 0:02:48.1]} 11. Nb5 {[%clk
0:03:01.1]} 11... Qh5 {[%clk 0:02:40.5]} 12. Ng3 {[%clk 0:03:01.3]} 12... Qh4
{[%clk 0:02:40.1]} 13. Nc7 {[%clk 0:03:00.8]} 13... e5 {[%clk 0:02:40.6]} 14.
Bxe5 {[%clk 0:02:52.8]} 14... Nxe5 {[%clk 0:02:39.3]} 15. Nxa8 {[%clk
0:02:53.1]} 15... Bd7 {[%clk 0:02:32.1]} 16. Nc7 {[%clk 0:02:53.1]} 16... Bc6
{[%clk 0:02:26.2]} 17. Nd5 {[%clk 0:02:46.4]} 17... Nfg4 {[%clk 0:01:59.4]} 18.
Nf4 {[%clk 0:02:37.8]} 18... Bh6 {[%clk 0:01:44]} 19. Bd5 {[%clk 0:02:20.1]}
19... Bxf4 {[%clk 0:01:30.3]} 20. exf4 {[%clk 0:02:16.2]} 20... Re8 {[%clk
0:01:30.6]} 21. Bxc6 {[%clk 0:01:44]} 21... Nf3+ {[%clk 0:01:13.6]} 22. Kd1
{[%clk 0:01:34.8]} 22... Nxf2+ {[%clk 0:01:13.7]} 23. Kc2 {[%clk 0:01:30.5]}
23... Nd4+ {[%clk 0:01:14.2]} 24. Kb1 {[%clk 0:01:30.5]} 24... Nxb3 {[%clk
0:01:14.5]} 25. Bxe8 {[%clk 0:01:30.3]} 25... Nxc1 {[%clk 0:01:14.5]} 26. Rxc1
{[%clk 0:01:29.2]} 26... Qxh2 {[%clk 0:01:09.2]} 27. Nf1 {[%clk 0:01:00.4]}
27... Qxg2 {[%clk 0:01:06.3]} 28. Ba4 {[%clk 0:00:52.6]} 28... Nd3 {[%clk
0:01:02.7]} 0-1